lending/lending_fUSD_20260306
["ID","MTS","AMOUNT","RATE_DAILY","PERIOD"]
[407780129,1772796640811,-691.77865994,0.00019987,2]
[407780130,1772796640821,-500.0,0.00019987,2]
[407780131,1772796640833,-500.0,0.00019987,2]
[407780132,1772796640843,-500.0,0.00019987,2]
[407780133,1772796640853,-500.0,0.00019987,2]
[407780134,1772796640863,-587.0,0.00019987,2]
[407780135,1772796640874,-500.0,0.00019987,2]
[407780136,1772796640883,-500.0,0.00019987,2]
[407780137,1772796640893,-1343.0,0.00019987,2]
[407780138,1772796640902,-500.0,0.00019987,2]
[407780139,1772796640913,-858.0,0.00019987,2]
[407780140,1772796640923,-2690.0,0.00019987,2]
[407780141,1772796640933,-500.0,0.00019987,2]
[407780142,1772796640944,-649.87020138,0.00019987,2]
[407780143,1772796640955,-607.0,0.00019987,2]
[407780144,1772796640965,-500.0,0.00019987,2]
[407780145,1772796640974,-500.0,0.00019987,2]
[407780146,1772796640985,-500.0,0.00019987,2]
[407780147,1772796640995,-1052.0,0.00019987,2]
[407780148,1772796641004,-500.0,0.00019987,2]
[407780149,1772796641015,-500.0,0.00019987,2]
[407780150,1772796641025,-500.0,0.00019987,2]
[407780151,1772796641038,-615.0,0.00019987,2]
[407780152,1772796641049,-500.0,0.00019987,2]
[407780153,1772796641060,-500.0,0.00019987,2]
[407780154,1772796641069,-1334.0,0.00019987,2]
[407780155,1772796641078,-500.0,0.00019987,2]
[407780156,1772796641087,-500.0,0.00019987,2]
[407780157,1772796641098,-150.0,0.00019987,2]
[407780158,1772796641108,-500.0,0.00019987,2]
[407780159,1772796641117,-279.88524266,0.0001999,2]
[407780160,1772796641126,-279.88524266,0.0001999,2]
[407780161,1772796641135,-151.0,0.00019997,2]
[407780162,1772796641144,-300.0,0.00019999,2]
[407780163,1772796641153,-300.0,0.00019999,2]
[407780164,1772796641162,-150.0,0.00019999,2]
[407780165,1772796641173,-183.31183954,0.00019999,2]
[407780166,1772796641182,-3232.0,0.0002,2]
[407780167,1772796641192,-1153566.94515204,0.0002,2]
[407780168,1772796641202,-3170504.40667131,0.0002,2]
[407780169,1772796641211,-150.0,0.0002,2]
[407780170,1772796641220,-318.11,0.0002,7]
[407780171,1772796641229,-150.0,0.0002,2]
[407780172,1772796641238,-706.42643953,0.0002,2]
[407780173,1772796641248,-150.0,0.0002,2]
[407780174,1772796641257,-18828.85635592,0.0002,2]
[407780175,1772796641266,-1565.90123892,0.0002,2]
[407780176,1772796641275,-500.0,0.0002,2]
[407780177,1772796641285,-500.0,0.0002,2]
[407780178,1772796641294,-500.0,0.0002,2]
[407780179,1772796641304,-500.0,0.0002,2]
[407780180,1772796641315,-150.0,0.0002,2]
[407780181,1772796641327,-500.0,0.0002,2]
[407780182,1772796641589,-500.0,0.0002,2]
[407780183,1772796641600,-500.0,0.0002,2]
[407780184,1772796641609,-328.37706565,0.0002,2]
[407780185,1772796641623,-700.63241713,0.0002,5]
[407780186,1772796641632,-1047429.58343665,0.0002,2]
[407780187,1772796642556,-590.72355662,0.000168,2]
[407780188,1772796642567,-1280.8790409,0.000168,2]
[407780189,1772796642578,-1932.07375818,0.000168,2]
[407780190,1772796642589,-398.23705892,0.000168,2]
[407780192,1772796642725,-2495798.08658538,0.000168,2]
[407780193,1772796642735,-500.0,0.00019699,2]
[407780194,1772796642745,-500.0,0.00019699,2]
[407780195,1772796642756,-500.0,0.00019699,2]
[407780196,1772796642765,-500.0,0.00019699,2]
[407780197,1772796642775,-500.0,0.00019699,2]
[407780198,1772796642784,-500.0,0.00019699,2]
[407780199,1772796642794,-499.24449254,0.00019699,2]
[407780200,1772796642803,-500.0,0.00019699,2]
[407780201,1772796642813,-500.0,0.00019699,2]
[407780202,1772796642822,-500.0,0.00019699,2]
[407780203,1772796642832,-500.0,0.00019699,2]
[407780204,1772796642841,-500.0,0.00019699,2]
[407780205,1772796642850,-500.0,0.00019699,2]
[407780206,1772796642860,-500.0,0.00019699,2]
[407780207,1772796642869,-500.0,0.00019699,2]
[407780208,1772796642879,-500.0,0.00019699,2]
[407780209,1772796642888,-500.0,0.00019699,2]
[407780210,1772796642898,-4790451.26291979,0.0002,2]
[407780211,1772796642908,-1474.82784586,0.0002,5]
[407780212,1772796642918,-1242726.61040478,0.0002,2]
[407780213,1772796642942,-11140.9429633,0.0002,2]
[407780223,1772796644023,-489.47386116,0.000199,2]
[407780225,1772796644034,-851.52613884,0.000199,2]
[407780227,1772796644044,-221.3077576,0.000199,2]
[407780229,1772796644053,-8931.24261268,0.0002,2]
[407780239,1772796644160,-474.03740615,0.0002,2]
[407780240,1772796644289,-524700.96950459,0.0002,2]
[407780251,1772796645614,-5011.12020121,0.0002,2]
[407780255,1772796651971,2718.0,0.000137,5]
[407780256,1772796746304,514.0,0.00014,2]
[407780257,1772796760434,357.5607,0.00015372,2]
[407780258,1772796786374,250.0,0.00015,2]
[407780259,1772796841910,514.0,0.00014,2]
[407780260,1772796888459,168.46,0.00015,2]
[407780261,1772796993378,2524.48,0.00014771,2]
[407780263,1772797111462,514.0,0.00014,2]
[407780295,1772797292472,2439.5093,0.00015485,2]
[407780296,1772797292494,1199.1707,0.00015485,2]
[407780298,1772797342259,158.0,8.033e-05,2]
[407780299,1772797342457,158.0,8.456e-05,2]
[407780300,1772797342668,158.0,8.879e-05,2]
[407780301,1772797342882,158.0,9.301e-05,2]
[407780302,1772797343402,158.0,9.724e-05,2]
[407780303,1772797343441,158.0,0.00010147,2]
[407780304,1772797343492,158.0,0.0001057,2]
[407780305,1772797343635,158.0,0.00010993,2]
[407780306,1772797343842,158.0,0.00011415,2]
[407780307,1772797344036,158.0,0.00011838,2]
[407780308,1772797344232,158.0,0.00012261,2]
[407780309,1772797344437,158.0,0.00012684,2]
[407780310,1772797344646,158.0,0.00013107,2]
[407780311,1772797344908,158.0,0.00013529,2]
[407780312,1772797345115,158.0,0.00013952,2]
[407780313,1772797345325,158.0,0.00014375,2]
[407780314,1772797345533,158.0,0.00014798,2]
[407780315,1772797345725,158.0,0.00015221,2]
[407780324,1772797469507,515.0,0.00014,2]
[407780326,1772797540136,-154.0,0.00015485,2]
[407780327,1772797540163,-162.0,0.00015485,2]
[407780328,1772797540189,-1102.17129161,0.00015485,2]
[407780329,1772797540217,-279.0,0.00015485,2]
[407780330,1772797540245,-158.0,0.00015643,2]
[407780331,1772797541772,-4196.40941335,0.000157,2]
[407780332,1772797541936,-10000.01,0.000157,2]
[407780333,1772797542184,-10000.01,0.000157,2]
[407780334,1772797542439,-10000.01,0.000157,2]
[407780335,1772797542963,-10000.01,0.000157,2]
[407780336,1772797542996,-10000.01,0.000157,2]
[407780337,1772797543152,-10000.01,0.000157,2]
[407780338,1772797546102,-10000.01,0.000157,2]
[407780339,1772797546204,-10000.01,0.000157,2]
[407780340,1772797546310,-10000.01,0.000157,2]
[407780341,1772797549110,-4497.83873194,0.000157,2]
[407780347,1772797571837,158.0,0.000157,3]
[407780348,1772797597319,506.0,0.00014,2]
[407780349,1772797616559,340.33253612,0.000157,2]
[407780350,1772797616581,1048.48051817,0.000157,2]
[407780351,1772797627422,159.0,0.000157,3]
[407780374,1772797749790,8792.52948183,0.000156,2]
[407780375,1772797749818,10000.01,0.000156,2]
[407780376,1772797749845,10000.01,0.000156,2]
[407780377,1772797749870,10000.01,0.000156,2]
[407780378,1772797750270,10000.01,0.000156,2]
[407780380,1772797828608,515.0,0.00014,2]
[407780387,1772797832109,-862.23,0.0001559,2]
[407780388,1772797832119,-862.23,0.0001559,2]
[407780389,1772797832129,-302.4240699,0.0001559,2]
[407780390,1772797832280,-124.87926717,0.0001559,2]
[407780391,1772797832290,-151.0,0.00015597,2]
[407780392,1772797832300,-542.59073283,0.00015599,2]
[407780393,1772797832315,-457.40926717,0.00015599,2]
[407780394,1772797832325,-1200.0,0.00015599,2]
[407780395,1772797832334,-5392.69073283,0.000156,2]
[407780396,1772797832464,-360975.06216091,0.000156,2]
[407780397,1772797837907,-7028.29999999,0.000156,2]
[407780398,1772797838067,-545.29299602,0.000156,2]
[407780399,1772797838078,-1273.31499899,0.000156,2]
[407780400,1772797838090,-547.8020483,0.000156,2]
[407780401,1772797838101,-1859.16761429,0.000156,2]
[407780402,1772797838121,-2073585.79996684,0.000156,2]
[407780403,1772797838130,-280.0,0.000156,2]
[407780404,1772797838140,-311711.3407,0.000156,2]
[407780405,1772797838150,-10000.0,0.000157,2]
[407780406,1772797838159,-1852.42,0.00015949,2]
[407780407,1772797838168,-200.0,0.00015995,2]
[407780408,1772797838178,-200.0,0.00016001,2]
[407780409,1772797838187,-1600.0,0.00016011,2]
[407780410,1772797838197,-158.0,0.00016066,2]
[407780417,1772797838505,-183.62,0.00016092,3]
[407780418,1772797838515,-515.61114417,0.000161,2]
[407780419,1772797838526,-500.0,0.00016109,2]
[407780420,1772797838535,-8763.94,0.0001624,2]
[407780421,1772797838545,-166.67,0.00016411,2]
[407780422,1772797838555,-2000.0,0.000166,2]
[407780423,1772797838565,-550.0,0.00016699,2]
[407780424,1772797838574,-153.41341496,0.000167,2]
[407780425,1772797838583,-4209.72488347,0.000167,2]
[407780426,1772797838592,-3261.3123,0.000167,2]
[407780427,1772797838601,-318.84421044,0.000167,2]
[407780428,1772797838610,-1225.37032201,0.000167,2]
[407780429,1772797838619,-200.0,0.000167,2]
[407780430,1772797838628,-2000.0,0.000167,2]
[407780431,1772797838637,-589.03508066,0.00016773,2]
[407780432,1772797838646,-492.56619301,0.00016789,2]
[407780433,1772797838655,-151.0,0.0001679,2]
[407780434,1772797838665,-151.0,0.0001679,2]
[407780435,1772797838674,-151.0,0.0001679,2]
[407780436,1772797838684,-151.0,0.0001679,2]
[407780437,1772797838692,-151.0,0.0001679,2]
[407780438,1772797838701,-151.0,0.0001679,2]
[407780439,1772797838710,-151.0,0.0001679,2]
[407780440,1772797838719,-151.0,0.0001679,2]
[407780441,1772797838728,-151.0,0.0001679,2]
[407780442,1772797838737,-151.0,0.0001679,2]
[407780443,1772797838746,-151.0,0.0001679,2]
[407780444,1772797838755,-5217.664,0.0001679,2]
[407780445,1772797838765,-359.974,0.0001679,2]
[407780446,1772797838774,-151.78,0.0001679,2]
[407780447,1772797838783,-500.0,0.00016799,2]
[407780448,1772797838792,-500.0,0.00016799,2]
[407780449,1772797838801,-500.0,0.00016799,2]
[407780450,1772797838810,-500.0,0.00016799,2]
[407780451,1772797838819,-500.0,0.00016799,2]
[407780452,1772797838828,-500.0,0.00016799,2]
[407780453,1772797838837,-500.0,0.00016799,2]
[407780454,1772797838847,-500.0,0.00016799,2]
[407780455,1772797838856,-500.0,0.00016799,2]
[407780456,1772797838865,-500.0,0.00016799,2]
[407780457,1772797838874,-500.0,0.00016799,2]
[407780458,1772797838883,-500.0,0.00016799,2]
[407780459,1772797838892,-500.0,0.00016799,2]
[407780460,1772797838901,-500.0,0.00016799,2]
[407780461,1772797838910,-500.0,0.00016799,2]
[407780462,1772797838919,-500.0,0.00016799,2]
[407780463,1772797838928,-500.0,0.00016799,2]
[407780464,1772797838938,-500.0,0.00016799,2]
[407780465,1772797838951,-500.0,0.00016799,2]
[407780466,1772797838960,-500.0,0.00016799,2]
[407780467,1772797838969,-500.0,0.00016799,2]
[407780468,1772797838979,-500.0,0.00016799,2]
[407780469,1772797838988,-500.0,0.00016799,2]
[407780470,1772797838997,-500.0,0.00016799,2]
[407780471,1772797839006,-500.0,0.00016799,2]
[407780472,1772797839016,-500.0,0.00016799,2]
[407780473,1772797839026,-500.0,0.00016799,2]
[407780474,1772797839035,-500.0,0.00016799,2]
[407780475,1772797839055,-500.0,0.00016799,2]
[407780476,1772797839065,-500.0,0.00016799,2]
[407780477,1772797839074,-500.0,0.00016799,2]
[407780478,1772797839083,-309.08603813,0.00016799,2]
[407780479,1772797839092,-500.0,0.00016799,2]
[407780480,1772797839102,-500.0,0.00016799,2]
[407780481,1772797839111,-500.0,0.00016799,2]
[407780482,1772797839120,-500.0,0.00016799,2]
[407780483,1772797839130,-500.0,0.00016799,2]
[407780484,1772797839140,-500.0,0.00016799,2]
[407780485,1772797839150,-500.0,0.00016799,2]
[407780486,1772797839160,-500.0,0.00016799,2]
[407780487,1772797839170,-500.0,0.00016799,2]
[407780488,1772797839181,-500.0,0.00016799,2]
[407780489,1772797839191,-500.0,0.00016799,2]
[407780490,1772797839201,-500.0,0.00016799,2]
[407780491,1772797839211,-500.0,0.00016799,2]
[407780492,1772797839222,-500.0,0.00016799,2]
[407780493,1772797839232,-500.0,0.00016799,2]
[407780494,1772797839243,-500.0,0.00016799,2]
[407780495,1772797839252,-500.0,0.00016799,2]
[407780496,1772797839262,-500.0,0.00016799,2]
[407780497,1772797839271,-500.0,0.00016799,2]
[407780498,1772797839280,-500.0,0.00016799,2]
[407780499,1772797839290,-400.0,0.00016799,2]
[407780500,1772797839299,-500.0,0.00016799,2]
[407780501,1772797839308,-500.0,0.00016799,2]
[407780502,1772797839318,-500.0,0.00016799,2]
[407780503,1772797839327,-500.0,0.00016799,2]
[407780504,1772797839336,-500.0,0.00016799,2]
[407780505,1772797839347,-500.0,0.00016799,2]
[407780506,1772797839356,-500.0,0.00016799,2]
[407780507,1772797839368,-500.0,0.00016799,2]
[407780508,1772797839378,-500.0,0.00016799,2]
[407780509,1772797839387,-500.0,0.00016799,2]
[407780510,1772797839396,-462.18232633,0.00016799,2]
[407780511,1772797839405,-500.0,0.00016799,2]
[407780512,1772797839415,-408.30831316,0.00016799,2]
[407780513,1772797839424,-500.0,0.00016799,2]
[407780514,1772797839433,-2000.0,0.000168,2]
[407780515,1772797839443,-1821.97841118,0.00016886,2]
[407780516,1772797839452,-2000.0,0.000169,2]
[407780517,1772797839462,-2000.0,0.000169,2]
[407780518,1772797839471,-2000.0,0.000169,2]
[407780519,1772797839480,-2000.0,0.000169,2]
[407780520,1772797839490,-2000.0,0.000169,2]
[407780521,1772797839498,-2000.0,0.000169,2]
[407780522,1772797839508,-2000.0,0.000169,2]
[407780523,1772797839517,-2000.0,0.000169,2]
[407780524,1772797839527,-2000.0,0.000169,2]
[407780525,1772797839536,-258.03814449,0.000169,2]
[407780526,1772797839548,-300.0,0.00017,2]
[407780527,1772797839557,-1500.0,0.00017,2]
[407780528,1772797839568,-200.0,0.00017,2]
[407780529,1772797839578,-4209.72488343,0.00017056,2]
[407780530,1772797839589,-151.78,0.0001706,2]
[407780531,1772797839600,-652.07601716,0.00017073,2]
[407780532,1772797839613,-1300.64494982,0.00017073,2]
[407780533,1772797839623,-275.84787778,0.00017112,2]
[407780534,1772797839636,-500.0,0.00017128,2]
[407780535,1772797839647,-150.0,0.00017128,2]
[407780536,1772797839657,-1680.0,0.00017148,2]
[407780538,1772797839668,-373067.39,0.00017156,2]
[407780540,1772797839677,-353.07408918,0.0001716,2]
[407780542,1772797839688,-5000.0,0.0001716,2]
[407780543,1772797839698,-500.0,0.00017173,2]
[407780544,1772797839707,-500.0,0.00017173,2]
[407780545,1772797839718,-500.0,0.00017173,2]
[407780546,1772797839727,-500.0,0.00017173,2]
[407780547,1772797839737,-494.64624274,0.00017173,2]
[407780548,1772797839747,-500.0,0.00017173,2]
[407780549,1772797839756,-500.0,0.00017173,2]
[407780550,1772797839766,-500.0,0.00017173,2]
[407780551,1772797839775,-500.0,0.00017173,2]
[407780552,1772797839785,-500.0,0.00017173,2]
[407780553,1772797839795,-245.72,0.00017183,2]
[407780554,1772797839806,-1000.0,0.00017257,2]
[407780555,1772797839815,-166.67,0.00017314,2]
[407780556,1772797839825,-151.78,0.0001733,2]
[407780557,1772797839835,-4000.0,0.00017334,2]
[407780558,1772797839845,-500.0,0.00017402,2]
[407780559,1772797839854,-4209.72488343,0.00017411,2]
[407780560,1772797839864,-876.76,0.00017415,2]
[407780561,1772797839873,-2307.27,0.0001751,7]
[407780562,1772797839883,-150.0,0.00017536,2]
[407780563,1772797839892,-2290.50907272,0.00017544,2]
[407780564,1772797839902,-250.0,0.00017544,2]
[407780566,1772797839911,-600.76717863,0.00017544,2]
[407780568,1772797839922,-151.78,0.000176,2]
[407780570,1772797839932,-780.83,0.00017635,2]
[407780571,1772797839943,-450.0,0.00017676,2]
[407780572,1772797839954,-876.76,0.00017689,2]
[407780573,1772797839964,-1000.0,0.00017721,2]
[407780574,1772797839973,-1000.0,0.00017721,2]
[407780575,1772797839983,-1000.0,0.00017721,2]
[407780576,1772797839993,-1000.0,0.00017721,2]
[407780577,1772797840003,-235.21838039,0.00017721,2]
[407780578,1772797840012,-1000.0,0.00017721,2]
[407780579,1772797840024,-1000.0,0.00017721,2]
[407780580,1772797840034,-1000.0,0.00017721,2]
[407780581,1772797840043,-170.42,0.0001776,2]
[407780582,1772797840053,-4209.72488343,0.00017767,2]
[407780583,1772797840062,-4000.0,0.00017767,2]
[407780584,1772797840072,-824.0,0.00017818,2]
[407780585,1772797840081,-151.78,0.0001787,2]
[407780586,1772797840090,-780.83,0.00017909,2]
[407780587,1772797840100,-876.76,0.00017963,2]
[407780588,1772797840110,-182.80013699,0.00018,2]
[407780589,1772797840119,-200.35,0.00018,4]
[407780590,1772797840128,-200.0,0.00018,2]
[407780591,1772797840138,-1600.0,0.00018013,2]
[407780592,1772797840147,-1730.46,0.00018035,7]
[407780593,1772797840156,-182.43846544,0.00018117,2]
[407780594,1772797840166,-500.0,0.00018117,2]
[407780595,1772797840175,-500.0,0.00018117,2]
[407780596,1772797840184,-500.0,0.00018117,2]
[407780597,1772797840193,-446.12402339,0.00018117,2]
[407780598,1772797840203,-4209.72488343,0.00018122,2]
[407780599,1772797840212,-151.78,0.0001814,2]
[407780600,1772797840221,-3354.35,0.00018156,7]
[407780601,1772797840231,-780.83,0.00018183,2]
[407780602,1772797840240,-4000.0,0.00018201,2]
[407780603,1772797840250,-166.67,0.00018216,2]
[407780604,1772797840259,-876.76,0.00018237,2]
[407780605,1772797840276,-1500.0,0.00018268,2]
[407780606,1772797840286,-1500.0,0.00018268,2]
[407780607,1772797840296,-1500.0,0.00018268,2]
[407780608,1772797840305,-1057.2086331,0.00018268,2]
[407780609,1772797840314,-1500.0,0.00018268,2]
[407780610,1772797840324,-1500.0,0.00018268,2]
[407780611,1772797840334,-160.0,0.000184,2]
[407780612,1772797840343,-2803.0,0.000184,2]
[407780613,1772797840355,-2803.0,0.000184,2]
[407780614,1772797840367,-2803.0,0.000184,2]
[407780615,1772797840376,-151.78,0.0001841,2]
[407780616,1772797840385,-3388.83143379,0.00018432,2]
[407780617,1772797840395,-252.67365585,0.00018432,2]
[407780618,1772797840405,-721.12765535,0.00018432,2]
[407780619,1772797840415,-500.0,0.00018432,2]
[407780620,1772797840424,-151.0,0.00018432,2]
[407780621,1772797840435,-500.0,0.00018432,2]
[407780622,1772797840446,-151.0,0.00018432,2]
[407780623,1772797840456,-500.0,0.00018432,2]
[407780624,1772797840467,-151.0,0.00018432,2]
[407780625,1772797840477,-500.0,0.00018432,2]
[407780626,1772797840487,-151.0,0.00018432,2]
[407780627,1772797840495,-500.0,0.00018432,2]
[407780628,1772797840504,-151.0,0.00018432,2]
[407780629,1772797840514,-500.0,0.00018432,2]
[407780630,1772797840523,-300.0,0.00018432,2]
[407780631,1772797840533,-151.0,0.00018432,2]
[407780632,1772797840543,-500.0,0.00018432,2]
[407780633,1772797840552,-151.0,0.00018432,2]
[407780634,1772797840565,-500.0,0.00018432,2]
[407780635,1772797840576,-151.0,0.00018432,2]
[407780637,1772797840585,-500.0,0.00018432,2]
[407780639,1772797840594,-500.0,0.00018432,2]
[407780641,1772797840605,-500.0,0.00018432,2]
[407780643,1772797840614,-578.20924308,0.00018432,2]
[407780645,1772797840623,-250.0,0.00018432,2]
[407780647,1772797840632,-250.0,0.00018432,2]
[407780649,1772797840642,-271.67882507,0.00018432,2]
[407780651,1772797840651,-250.0,0.00018432,2]
[407780652,1772797840661,-250.0,0.00018432,2]
[407780653,1772797840671,-250.0,0.00018432,2]
[407780654,1772797840680,-300.0,0.00018432,2]
[407780655,1772797840689,-174.61919141,0.00018432,2]
[407780656,1772797840698,-250.0,0.00018432,2]
[407780657,1772797840708,-305.95163096,0.00018432,2]
[407780658,1772797840717,-250.0,0.00018432,2]
[407780659,1772797840727,-250.0,0.00018432,2]
[407780660,1772797840736,-250.0,0.00018432,2]
[407780661,1772797840746,-250.0,0.00018432,2]
[407780662,1772797840756,-250.0,0.00018432,2]
[407780663,1772797840766,-151.0,0.00018432,2]
[407780664,1772797840775,-250.0,0.00018432,2]
[407780665,1772797840783,-250.0,0.00018432,2]
[407780666,1772797840792,-250.0,0.00018432,2]
[407780667,1772797840801,-250.0,0.00018432,2]
[407780668,1772797840811,-250.0,0.00018432,2]
[407780669,1772797840820,-500.0,0.00018432,2]
[407780670,1772797840829,-250.0,0.00018432,2]
[407780671,1772797840839,-500.0,0.00018432,2]
[407780672,1772797840848,-250.0,0.00018432,2]
[407780673,1772797840858,-1000.0,0.00018432,2]
[407780674,1772797840867,-500.0,0.00018432,2]
[407780675,1772797840877,-693.3919763,0.00018432,2]
[407780676,1772797840886,-500.0,0.00018432,2]
[407780677,1772797840896,-500.0,0.00018432,2]
[407780678,1772797840905,-500.0,0.00018432,2]
[407780679,1772797840915,-500.0,0.00018432,2]
[407780680,1772797840925,-500.0,0.00018432,2]
[407780681,1772797840935,-500.0,0.00018432,2]
[407780682,1772797840946,-500.0,0.00018432,2]
[407780683,1772797840955,-500.0,0.00018432,2]
[407780684,1772797840965,-500.0,0.00018432,2]
[407780685,1772797840974,-500.0,0.00018432,2]
[407780686,1772797840984,-500.0,0.00018432,2]
[407780687,1772797840993,-503.01170887,0.00018432,2]
[407780688,1772797841002,-500.0,0.00018432,2]
[407780689,1772797841011,-500.0,0.00018432,2]
[407780690,1772797841024,-508.72212285,0.00018432,2]
[407780691,1772797841033,-250.0,0.00018432,2]
[407780692,1772797841043,-1000.0,0.00018432,2]
[407780693,1772797841051,-1000.0,0.00018432,2]
[407780694,1772797841061,-1000.0,0.00018432,2]
[407780695,1772797841070,-262.90206542,0.00018432,2]
[407780696,1772797841079,-269.917619,0.00018432,2]
[407780697,1772797841089,-1000.0,0.00018432,2]
[407780698,1772797841098,-1000.0,0.00018432,2]
[407780699,1772797841107,-1000.0,0.00018432,2]
[407780700,1772797841116,-1000.0,0.00018432,2]
[407780701,1772797841126,-1000.0,0.00018432,2]
[407780702,1772797841136,-1000.0,0.00018432,2]
[407780703,1772797841145,-1000.0,0.00018432,2]
[407780704,1772797841155,-1000.0,0.00018432,2]
[407780705,1772797841164,-743.50770149,0.00018432,2]
[407780706,1772797841174,-892.71,0.00018457,2]
[407780707,1772797841183,-4209.72488343,0.00018478,2]
[407780708,1772797841193,-151.0,0.00018487,2]
[407780709,1772797841202,-719.04747942,0.00018487,2]
[407780710,1772797841211,-833.54,0.00018511,2]
[407780711,1772797841221,-151.0,0.00018542,2]
[407780712,1772797841231,-745.65223616,0.00018542,2]
[407780713,1772797841240,-500.0,0.00018548,2]
[407780714,1772797841249,-318.84421043,0.00018556,2]
[407780715,1772797841258,-1153.64,0.00018561,7]
[407780716,1772797841268,-151.0,0.00018597,2]
[407780717,1772797841278,-773.2413689,0.00018597,2]
[407780718,1772797841287,-4000.0,0.00018634,2]
[407780719,1772797841296,-151.0,0.00018652,2]
[407780720,1772797841306,-801.85129955,0.00018652,2]
[407780721,1772797841315,-1000.0,0.00018665,2]
[407780722,1772797841324,-1000.0,0.00018665,2]
[407780723,1772797841334,-1000.0,0.00018665,2]
[407780724,1772797841343,-151.78,0.0001868,2]
[407780725,1772797841353,-2515.77,0.000187,7]
[407780726,1772797841365,-172.74325605,0.000187,7]
[407780727,1772797841376,-151.0,0.00018707,2]
[407780728,1772797841387,-831.51979763,0.00018707,2]
[407780729,1772797841396,-2803.0,0.0001872,2]
[407780730,1772797841406,-2803.0,0.0001872,2]
[407780731,1772797841415,-2520.01,0.0001872,2]
[407780732,1772797841424,-2520.01,0.0001872,30]
[407780733,1772797841433,-862.28603014,0.00018762,2]
[407780734,1772797841442,-153.25442737,0.00018799,2]
[407780735,1772797841454,-500.0,0.00018806,2]
[407780736,1772797841463,-2000.0,0.00018816,2]
[407780737,1772797841473,-2000.0,0.00018816,2]
[407780738,1772797841482,-1778.57186039,0.00018816,2]
[407780739,1772797841491,-2000.0,0.00018816,2]
[407780740,1772797841500,-894.19061326,0.00018817,2]
[407780741,1772797841509,-183.38,0.00018828,2]
[407780742,1772797841518,-4209.72488343,0.00018833,2]
[407780743,1772797841528,-2351.0,0.00018851,2]
[407780744,1772797841538,-1225.37032197,0.00018857,2]
[407780745,1772797841548,-927.27566595,0.00018872,2]
[407780746,1772797841558,-961.58486559,0.00018927,2]
[407780747,1772797841568,-151.78,0.0001895,2]
[407780748,1772797841577,-181.08010149,0.0001898,2]
[407780749,1772797841586,-272.62944185,0.0001898,2]
[407780750,1772797841595,-279.9045709,0.0001898,2]
[407780751,1772797841604,-997.16350561,0.00018982,2]
[407780752,1772797841614,-350.0,0.00019,2]
[407780753,1772797841623,-2803.0,0.0001904,2]
[407780754,1772797841633,-847.0,0.0001904,2]
[407780755,1772797841642,-847.0,0.0001904,2]
[407780756,1772797841652,-309.42125143,0.00019064,2]
[407780757,1772797841661,-4000.0,0.00019067,2]
[407780758,1772797841670,-172.74325605,0.00019101,2]
[407780759,1772797841680,-160.0,0.00019101,2]